fUSD/lending_fUSD_20260502
["ID","MTS","AMOUNT","RATE_DAILY","PERIOD"]
[421464408,1777723844000,-500.0,0.00032876,2]
[421464410,1777723844000,-581.3,0.00032876,2]
[421464409,1777723844000,-204.80444126,0.00032876,2]
[421464415,1777723844000,-500.0,0.00032876,2]
[421464416,1777723844000,-945.16,0.00032876,2]
[421464411,1777723844000,-271.54961063,0.00032876,2]
[421464413,1777723844000,-500.0,0.00032876,2]
[421464414,1777723844000,-293.80121237,0.00032876,2]
[421464428,1777723844000,-500.0,0.00032876,2]
[421464419,1777723844000,-198.47858576,0.00032876,2]
[421464425,1777723844000,-281.25996012,0.00032876,2]
[421464418,1777723844000,-500.0,0.00032876,2]
[421464439,1777723844000,-500.0,0.00032876,2]
[421464424,1777723844000,-500.0,0.00032876,2]
[421464420,1777723844000,-1257.83,0.00032876,2]
[421464417,1777723844000,-254.13803132,0.00032876,2]
[421464429,1777723844000,-500.0,0.00032876,2]
[421464423,1777723844000,-540.89,0.00032876,2]
[421464421,1777723844000,-241.26425237,0.00032876,2]
[421464427,1777723844000,-500.0,0.00032876,2]
[421464426,1777723844000,-500.0,0.00032876,2]
[421464430,1777723844000,-500.0,0.00032876,2]
[421464441,1777723844000,-500.0,0.00032876,2]
[421464435,1777723844000,-169.23501878,0.00032876,2]
[421464431,1777723844000,-888.57,0.00032876,2]
[421464433,1777723844000,-675.21,0.00032876,2]
[421464432,1777723844000,-500.0,0.00032876,2]
[421464422,1777723844000,-500.0,0.00032876,2]
[421464476,1777723844000,-500.0,0.00032876,2]
[421464523,1777723844000,-534.94895957,0.00032876,2]
[421464473,1777723844000,-500.0,0.00032876,2]
[421464506,1777723844000,-500.0,0.00032876,2]
[421464508,1777723844000,-3679.38,0.00032876,2]
[421464504,1777723844000,-500.0,0.00032876,2]
[421464515,1777723844000,-500.0,0.00032876,2]
[421464513,1777723844000,-500.0,0.00032876,2]
[421464505,1777723844000,-249.00086575,0.00032876,2]
[421464512,1777723844000,-528.5,0.00032876,2]
[421464516,1777723844000,-500.0,0.00032876,2]
[421464510,1777723844000,-159.40571608,0.00032876,2]
[421464511,1777723844000,-548.2,0.00032876,2]
[421464507,1777723844000,-500.0,0.00032876,2]
[421464509,1777723844000,-500.0,0.00032876,2]
[421464514,1777723844000,-666.16,0.00032876,2]
[421464497,1777723844000,-500.0,0.00032876,2]
[421464518,1777723844000,-500.0,0.00032876,2]
[421464522,1777723844000,-500.0,0.00032876,2]
[421464521,1777723844000,-164.41590008,0.00032876,2]
[421464526,1777723844000,-500.0,0.00032876,2]
[421464529,1777723844000,-500.0,0.00032876,2]
[421464525,1777723844000,-500.0,0.00032876,2]
[421464519,1777723844000,-500.0,0.00032876,2]
[421464528,1777723844000,-214.35727732,0.00032876,2]
[421464527,1777723844000,-485.14452308,0.00032876,2]
[421464520,1777723844000,-674.99,0.00032876,2]
[421464524,1777723844000,-908.94,0.00032876,2]
[421464531,1777723844000,-271.20499462,0.00032876,2]
[421464530,1777723844000,-500.0,0.00032876,2]
[421464474,1777723844000,-667.99,0.00032876,2]
[421464517,1777723844000,-210.76858498,0.00032876,2]
[421464500,1777723844000,-822.24,0.00032876,2]
[421464532,1777723844000,-500.0,0.00032876,2]
[421464498,1777723844000,-500.0,0.00032876,2]
[421464495,1777723844000,-153.65636748,0.00032876,2]
[421464468,1777723844000,-500.0,0.00032876,2]
[421464477,1777723844000,-500.0,0.00032876,2]
[421464479,1777723844000,-257.09632806,0.00032876,2]
[421464472,1777723844000,-500.0,0.00032876,2]
[421464471,1777723844000,-500.0,0.00032876,2]
[421464478,1777723844000,-702.09,0.00032876,2]
[421464470,1777723844000,-500.0,0.00032876,2]
[421464480,1777723844000,-500.0,0.00032876,2]
[421464482,1777723844000,-500.0,0.00032876,2]
[421464487,1777723844000,-527.36442554,0.00032876,2]
[421464486,1777723844000,-432.33533711,0.00032876,2]
[421464491,1777723844000,-500.0,0.00032876,2]
[421464484,1777723844000,-594.62767944,0.00032876,2]
[421464469,1777723844000,-745.89,0.00032876,2]
[421464490,1777723844000,-170.73766153,0.00032876,2]
[421464502,1777723844000,-669.54,0.00032876,2]
[421464499,1777723844000,-186.32419672,0.00032876,2]
[421464496,1777723844000,-500.0,0.00032876,2]
[421464494,1777723844000,-270.63197773,0.00032876,2]
[421464481,1777723844000,-500.0,0.00032876,2]
[421464493,1777723844000,-500.0,0.00032876,2]
[421464501,1777723844000,-661.11,0.00032876,2]
[421464492,1777723844000,-500.0,0.00032876,2]
[421464485,1777723844000,-235.56560727,0.00032876,2]
[421464489,1777723844000,-500.0,0.00032876,2]
[421464483,1777723844000,-158.7843848,0.00032876,2]
[421464488,1777723844000,-550.90015365,0.00032876,2]
[421464503,1777723844000,-537.82,0.00032876,2]
[421464571,1777723845000,-500.0,0.00032876,2]
[421464572,1777723845000,-1161.31,0.00032876,2]
[421464573,1777723845000,-500.0,0.00032876,2]
[421464575,1777723845000,-500.0,0.00032876,2]
[421464568,1777723845000,-500.0,0.00032876,2]
[421464570,1777723845000,-500.0,0.00032876,2]
[421464567,1777723845000,-500.0,0.00032876,2]
[421464563,1777723845000,-650.39,0.00032876,2]
[421464566,1777723845000,-865.9,0.00032876,2]
[421464565,1777723845000,-628.87,0.00032876,2]
[421464569,1777723845000,-675.42,0.00032876,2]
[421464576,1777723845000,-244.91597841,0.00032876,2]
[421464584,1777723845000,-253.42185639,0.00032876,2]
[421464579,1777723845000,-945.52,0.00032876,2]
[421464578,1777723845000,-500.0,0.00032876,2]
[421464577,1777723845000,-500.0,0.00032876,2]
[421464580,1777723845000,-500.0,0.00032876,2]
[421464581,1777723845000,-500.0,0.00032876,2]
[421464582,1777723845000,-500.0,0.00032876,2]
[421464583,1777723845000,-500.0,0.00032876,2]
[421464585,1777723845000,-500.0,0.00032876,2]
[421464587,1777723845000,-225.66182434,0.00032876,2]
[421464586,1777723845000,-500.0,0.00032876,2]
[421464588,1777723845000,-151.0,0.00032876,7]
[421464589,1777723845000,-151.0,0.00032876,7]
[421464564,1777723845000,-500.0,0.00032876,2]
[421464574,1777723845000,-500.0,0.00032876,2]
[421464558,1777723845000,-1980.22,0.00032876,2]
[421464548,1777723845000,-227.81628237,0.00032876,2]
[421464590,1777723845000,-589.87,0.00032876,2]
[421464541,1777723845000,-500.0,0.00032876,2]
[421464543,1777723845000,-649.48,0.00032876,2]
[421464542,1777723845000,-500.0,0.00032876,2]
[421464539,1777723845000,-666.77,0.00032876,2]
[421464534,1777723845000,-500.0,0.00032876,2]
[421464540,1777723845000,-295.70974,0.00032876,2]
[421464533,1777723845000,-500.0,0.00032876,2]
[421464537,1777723845000,-500.0,0.00032876,2]
[421464536,1777723845000,-886.27,0.00032876,2]
[421464538,1777723845000,-500.0,0.00032876,2]
[421464535,1777723845000,-500.0,0.00032876,2]
[421464544,1777723845000,-500.0,0.00032876,2]
[421464555,1777723845000,-186.50781207,0.00032876,2]
[421464545,1777723845000,-500.0,0.00032876,2]
[421464556,1777723845000,-500.0,0.00032876,2]
[421464549,1777723845000,-500.0,0.00032876,2]
[421464546,1777723845000,-820.87,0.00032876,2]
[421464551,1777723845000,-789.4,0.00032876,2]
[421464553,1777723845000,-500.0,0.00032876,2]
[421464547,1777723845000,-533.31,0.00032876,2]
[421464552,1777723845000,-657.66,0.00032876,2]
[421464550,1777723845000,-500.0,0.00032876,2]
[421464554,1777723845000,-249.83350801,0.00032876,2]
[421464557,1777723845000,-925.92,0.00032876,2]
[421464559,1777723845000,-856.71,0.00032876,2]
[421464561,1777723845000,-500.0,0.00032876,2]
[421464560,1777723845000,-267.73815182,0.00032876,2]
[421464562,1777723845000,-500.0,0.00032876,2]
[421464591,1777723845000,-151.0,0.00032876,7]
[421464621,1777723845000,-156.131123,0.00032876,2]
[421464592,1777723845000,-151.0,0.00032876,7]
[421464628,1777723845000,-691.25,0.00032876,2]
[421464639,1777723845000,-151.80804894,0.00032876,2]
[421464638,1777723845000,-1566.26,0.00032876,2]
[421464630,1777723845000,-500.0,0.00032876,2]
[421464629,1777723845000,-208.32386766,0.00032876,2]
[421464632,1777723845000,-500.0,0.00032876,2]
[421464634,1777723845000,-270.68078243,0.00032876,2]
[421464635,1777723845000,-500.0,0.00032876,2]
[421464627,1777723845000,-500.0,0.00032876,2]
[421464636,1777723845000,-500.0,0.00032876,2]
[421464631,1777723845000,-703.52,0.00032876,2]
[421464633,1777723845000,-500.0,0.00032876,2]
[421464640,1777723845000,-291.30292423,0.00032876,2]
[421464642,1777723845000,-500.0,0.00032876,2]
[421464641,1777723845000,-218.02585905,0.00032876,2]
[421464651,1777723845000,-500.0,0.00032876,2]
[421464652,1777723845000,-529.13595945,0.00032876,2]
[421464643,1777723845000,-500.0,0.00032876,2]
[421464644,1777723845000,-507.3643246,0.00032876,2]
[421464646,1777723845000,-500.0,0.00032876,2]
[421464645,1777723845000,-500.0,0.00032876,2]
[421464647,1777723845000,-500.0,0.00032876,2]
[421464650,1777723845000,-500.0,0.00032876,2]
[421464648,1777723845000,-2119.31,0.00032876,2]
[421464649,1777723845000,-554.3,0.00032876,2]
[421464653,1777723845000,-500.0,0.00032876,2]
[421464593,1777723845000,-270.8584498,0.00032876,2]
[421464622,1777723845000,-500.0,0.00032876,2]
[421464625,1777723845000,-500.0,0.00032876,2]
[421464637,1777723845000,-258.75659247,0.00032876,2]
[421464619,1777723845000,-500.0,0.00032876,2]
[421464595,1777723845000,-500.0,0.00032876,2]
[421464594,1777723845000,-500.0,0.00032876,2]
[421464596,1777723845000,-151.0,0.00032876,7]
[421464597,1777723845000,-500.0,0.00032876,2]
[421464599,1777723845000,-161.67610989,0.00032876,2]
[421464600,1777723845000,-156.134689,0.00032876,7]
[421464624,1777723845000,-500.0,0.00032876,2]
[421464602,1777723845000,-500.0,0.00032876,2]
[421464612,1777723845000,-500.0,0.00032876,2]
[421464613,1777723845000,-500.0,0.00032876,2]
[421464614,1777723845000,-500.0,0.00032876,2]
[421464603,1777723845000,-161.70962675,0.00032876,2]
[421464601,1777723845000,-500.0,0.00032876,2]
[421464609,1777723845000,-158.25860076,0.00032876,2]
[421464598,1777723845000,-444.70471587,0.00032876,2]
[421464608,1777723845000,-972.73,0.00032876,2]
[421464604,1777723845000,-220.7720926,0.00032876,2]
[421464620,1777723845000,-500.0,0.00032876,2]
[421464623,1777723845000,-500.0,0.00032876,2]
[421464618,1777723845000,-221.93165232,0.00032876,2]
[421464617,1777723845000,-500.0,0.00032876,2]
[421464626,1777723845000,-500.0,0.00032876,2]
[421464615,1777723845000,-595.11,0.00032876,2]
[421464616,1777723845000,-573.25469045,0.00032876,2]
[421464611,1777723845000,-1021.8,0.00032876,2]
[421464610,1777723845000,-500.0,0.00032876,2]
[421464605,1777723845000,-500.0,0.00032876,2]
[421464606,1777723845000,-297.59597943,0.00032876,2]
[421464663,1777723846000,-500.0,0.00032876,2]
[421464666,1777723846000,-5909.24,0.00032876,2]
[421464667,1777723846000,-500.0,0.00032876,2]
[421464665,1777723846000,-500.0,0.00032876,2]
[421464662,1777723846000,-2918.44,0.00032876,2]
[421464669,1777723846000,-500.0,0.00032876,2]
[421464661,1777723846000,-500.0,0.00032876,2]
[421464660,1777723846000,-500.0,0.00032876,2]
[421464657,1777723846000,-221.54963391,0.00032876,2]
[421464664,1777723846000,-639.31,0.00032876,2]
[421464659,1777723846000,-500.0,0.00032876,2]
[421464654,1777723846000,-500.0,0.00032876,2]
[421464658,1777723846000,-500.0,0.00032876,2]
[421464655,1777723846000,-151.0,0.00032876,7]
[421464668,1777723846000,-500.0,0.00032876,2]
[421464656,1777723846000,-151.0,0.00032876,7]
[421464672,1777723846000,-816.1182673,0.00032876,2]
[421464695,1777723846000,-500.0,0.00032876,2]
[421464670,1777723846000,-500.0,0.00032876,2]
[421464671,1777723846000,-205.14528484,0.00032876,2]
[421464698,1777723846000,-500.6,0.00032876,2]
[421464694,1777723846000,-564.58,0.00032876,2]
[421464696,1777723846000,-959.72,0.00032876,2]
[421464691,1777723846000,-200.0,0.00032876,2]
[421464697,1777723846000,-500.0,0.00032876,2]
[421464693,1777723846000,-500.0,0.00032876,2]
[421464690,1777723846000,-500.0,0.00032876,2]
[421464679,1777723846000,-6.9717327,0.00032876,2]
[421464686,1777723846000,-368.76049151,0.00032876,2]
[421464687,1777723846000,-410.3371997,0.00032876,2]
[421464685,1777723846000,-166.9549094,0.00032876,2]
[421464681,1777723846000,-333.0450906,0.00032876,2]
[421464689,1777723846000,-500.0,0.00032876,2]
[421464692,1777723846000,-500.0,0.00032876,2]
[421464688,1777723846000,-89.6628003,0.00032876,2]
[421464712,1777723847000,-500.0,0.00032876,2]
[421464716,1777723847000,-292.31645337,0.00032876,2]
[421464723,1777723847000,-811.07,0.00032876,2]
[421464711,1777723847000,-500.0,0.00032876,2]
[421464717,1777723847000,-500.0,0.00032876,2]
[421464721,1777723847000,-500.0,0.00032876,2]
[421464735,1777723847000,-383.27580225,0.00032876,2]
[421464714,1777723847000,-508.66,0.00032876,2]
[421464731,1777723847000,-817.85,0.00032876,2]
[421464737,1777723847000,-500.0,0.00032876,2]
[421464725,1777723847000,-500.0,0.00032876,2]
[421464713,1777723847000,-500.0,0.00032876,2]
[421464728,1777723847000,-500.0,0.00032876,2]
[421464722,1777723847000,-165.54057899,0.00032876,2]
[421464724,1777723847000,-500.0,0.00032876,2]
[421464706,1777723847000,-500.0,0.00032876,2]
[421464718,1777723847000,-510.94740693,0.00032876,2]
[421464732,1777723847000,-500.0,0.00032876,2]
[421464702,1777723847000,-52.75578825,0.00032876,2]
[421464699,1777723847000,-500.0,0.00032876,2]
[421464701,1777723847000,-500.0,0.00032876,2]
[421464700,1777723847000,-161.37707954,0.00032876,2]
[421464705,1777723847000,-500.0,0.00032876,2]
[421464715,1777723847000,-359.89339537,0.00032876,2]
[421464709,1777723847000,-500.0,0.00032876,2]
[421464704,1777723847000,-447.24421175,0.00032876,2]
[421464710,1777723847000,-500.0,0.00032876,2]
[421464703,1777723847000,-2495.64,0.00024055,5]
[421464707,1777723847000,-283.06176723,0.00032876,2]
[421464720,1777723847000,-746.1,0.00032876,2]
[421464719,1777723847000,-218.83182251,0.00032876,2]
[421464708,1777723847000,-500.0,0.00032876,2]
[421464736,1777723847000,-500.0,0.00032876,2]
[421464756,1777723847000,-153.88483797,0.00032876,2]
[421464729,1777723847000,-500.0,0.00032876,2]
[421464727,1777723847000,-500.0,0.00032876,2]
[421464762,1777723847000,-500.0,0.00032876,2]
[421464761,1777723847000,-880.33,0.00032876,2]
[421464760,1777723847000,-500.0,0.00032876,2]
[421464763,1777723847000,-979.8,0.00032876,2]
[421464759,1777723847000,-500.0,0.00032876,2]
[421464764,1777723847000,-500.0,0.00032876,2]
[421464765,1777723847000,-500.0,0.00032876,2]
[421464754,1777723847000,-500.0,0.00032876,2]
[421464757,1777723847000,-500.0,0.00032876,2]
[421464755,1777723847000,-500.0,0.00032876,2]
[421464753,1777723847000,-500.0,0.00032876,2]
[421464746,1777723847000,-624.86,0.00032876,2]
[421464748,1777723847000,-215.34056338,0.00032876,2]
[421464752,1777723847000,-500.0,0.00032876,2]
[421464758,1777723847000,-500.0,0.00032876,2]
[421464747,1777723847000,-892.7,0.00032876,2]
[421464733,1777723847000,-500.0,0.00032876,2]
[421464744,1777723847000,-500.0,0.00032876,2]
[421464738,1777723847000,-500.0,0.00032876,2]
[421464726,1777723847000,-500.0,0.00032876,2]
[421464730,1777723847000,-816.25,0.00032876,2]
[421464745,1777723847000,-767.62,0.00032876,2]
[421464743,1777723847000,-486.77989967,0.00032876,2]
[421464734,1777723847000,-500.0,0.00032876,2]
[421464739,1777723847000,-500.0,0.00032876,2]
[421464750,1777723847000,-536.26,0.00032876,2]
[421464751,1777723847000,-500.0,0.00032876,2]
[421464749,1777723847000,-646.36,0.00032876,2]
[421464742,1777723847000,-266.90509635,0.00032876,2]
[421464740,1777723847000,-190.24825988,0.00032876,2]
[421464741,1777723847000,-500.0,0.00032876,2]
[421464796,1777723848000,-500.0,0.00032876,2]
[421464799,1777723848000,-500.0,0.00032876,2]
[421464801,1777723848000,-500.0,0.00032876,2]
[421464793,1777723848000,-195.28258777,0.00032876,2]
[421464794,1777723848000,-151.0,0.00032876,7]
[421464791,1777723848000,-508.67,0.00032876,2]
[421464797,1777723848000,-901.81,0.00032876,2]
[421464802,1777723848000,-151.0,0.00032876,7]
[421464795,1777723848000,-151.0,0.00032876,7]
[421464800,1777723848000,-151.0,0.00032876,7]
[421464807,1777723848000,-500.0,0.00032876,2]
[421464806,1777723848000,-151.023668,0.00032876,7]
[421464803,1777723848000,-500.0,0.00032876,2]
[421464805,1777723848000,-150.26945953,0.00032876,2]
[421464804,1777723848000,-151.0,0.00032876,7]
[421464814,1777723848000,-256.7828921,0.00032876,2]
[421464808,1777723848000,-500.0,0.00032876,2]
[421464815,1777723848000,-166.68208339,0.00032876,2]
[421464811,1777723848000,-500.0,0.00032876,2]
[421464792,1777723848000,-151.0,0.00032876,7]
[421464812,1777723848000,-500.0,0.00032876,2]
[421464798,1777723848000,-151.0,0.00032876,7]
[421464787,1777723848000,-347.04117,0.00032876,7]
[421464777,1777723848000,-347.04117,0.00032876,7]
[421464786,1777723848000,-347.04117,0.00032876,7]
[421464813,1777723848000,-257.9595216,0.00032876,2]
[421464766,1777723848000,-500.0,0.00032876,2]
[421464768,1777723848000,-1309.06,0.00032876,2]
[421464767,1777723848000,-964.11,0.00032876,2]
[421464771,1777723848000,-347.04117,0.00032876,7]
[421464769,1777723848000,-500.0,0.00032876,2]
[421464770,1777723848000,-500.0,0.00032876,2]
[421464772,1777723848000,-501.43,0.00032876,2]
[421464774,1777723848000,-500.0,0.00032876,2]
[421464775,1777723848000,-347.04117,0.00032876,7]
[421464788,1777723848000,-347.04117,0.00032876,7]
[421464773,1777723848000,-347.04117,0.00032876,7]
[421464778,1777723848000,-347.04117,0.00032876,7]
[421464779,1777723848000,-347.04117,0.00032876,7]
[421464780,1777723848000,-347.04117,0.00032876,7]
[421464785,1777723848000,-500.0,0.00032876,2]
[421464781,1777723848000,-347.04117,0.00032876,7]
[421464783,1777723848000,-500.0,0.00032876,2]
[421464790,1777723848000,-500.0,0.00032876,2]
[421464789,1777723848000,-519.21,0.00032876,2]
[421464782,1777723848000,-511.18,0.00032876,2]
[421464784,1777723848000,-347.04117,0.00032876,7]
[421464776,1777723848000,-957.5,0.00032876,2]
[421464809,1777723848000,-213.57067215,0.00032876,2]
[421464851,1777723848000,-271.63463051,0.00032876,2]
[421464817,1777723848000,-500.0,0.00032876,2]
[421464844,1777723848000,-246.55469964,0.00032876,2]
[421464846,1777723848000,-244.40298615,0.00032876,2]
[421464841,1777723848000,-500.0,0.00032876,2]
[421464848,1777723848000,-211.47178271,0.00032876,2]
[421464847,1777723848000,-500.0,0.00032876,2]
[421464852,1777723848000,-203.72812373,0.00032876,2]
[421464850,1777723848000,-500.0,0.00032876,2]
[421464849,1777723848000,-500.0,0.00032876,2]
[421464853,1777723848000,-362.45714974,0.00032876,2]
[421464854,1777723848000,-500.0,0.00032876,2]
[421464842,1777723848000,-500.0,0.00032876,2]
[421464864,1777723848000,-500.0,0.00032876,2]
[421464855,1777723848000,-830.15,0.00032876,2]
[421464861,1777723848000,-500.0,0.00032876,2]
[421464859,1777723848000,-156.4221537,0.00032876,2]
[421464858,1777723848000,-500.0,0.00032876,2]
[421464860,1777723848000,-500.0,0.00032876,2]
[421464857,1777723848000,-500.0,0.00032876,2]
[421464863,1777723848000,-3660.3,0.00032876,2]
[421464862,1777723848000,-632.13571895,0.00032876,2]
[421464865,1777723848000,-500.0,0.00032876,2]
[421464810,1777723848000,-500.0,0.00032876,2]
[421464856,1777723848000,-500.0,0.00032876,2]
[421464843,1777723848000,-500.0,0.00032876,2]
[421464845,1777723848000,-500.0,0.00032876,2]
[421464831,1777723848000,-706.23,0.00032876,2]
[421464825,1777723848000,-210.0823122,0.00032876,2]
[421464816,1777723848000,-500.0,0.00032876,2]
[421464821,1777723848000,-843.31,0.00032876,2]
[421464820,1777723848000,-500.0,0.00032876,2]
[421464826,1777723848000,-500.0,0.00032876,2]
[421464827,1777723848000,-500.0,0.00032876,2]
[421464840,1777723848000,-775.96,0.00032876,2]
[421464828,1777723848000,-500.0,0.00032876,2]
[421464819,1777723848000,-500.0,0.00032876,2]
[421464822,1777723848000,-763.9,0.00032876,2]
[421464823,1777723848000,-500.0,0.00032876,2]
[421464818,1777723848000,-500.0,0.00032876,2]
[421464830,1777723848000,-164.93741166,0.00032876,2]
[421464832,1777723848000,-409.99792331,0.00032876,2]
[421464829,1777723848000,-500.0,0.00032876,2]
[421464833,1777723848000,-990.3,0.00032876,2]
[421464834,1777723848000,-500.0,0.00032876,2]
[421464835,1777723848000,-1266.98,0.00032876,2]
[421464836,1777723848000,-500.0,0.00032876,2]
[421464837,1777723848000,-500.0,0.00032876,2]
[421464839,1777723848000,-500.0,0.00032876,2]
[421464824,1777723848000,-981.92,0.00032876,2]
[421464838,1777723848000,-645.99,0.00032876,2]
[421464873,1777723849000,-159.97103299,0.00032876,2]
[421464868,1777723849000,-500.0,0.00032876,2]
[421464877,1777723849000,-500.0,0.00032876,2]
[421464874,1777723849000,-500.0,0.00032876,2]
[421464867,1777723849000,-540.72,0.00032876,2]
[421464869,1777723849000,-423.35167151,0.00032876,2]
[421464872,1777723849000,-500.0,0.00032876,2]
[421464866,1777723849000,-163.91200633,0.00032876,2]
[421464876,1777723849000,-554.95117493,0.00032876,2]
[421464878,1777723849000,-500.0,0.00032876,2]
[421464875,1777723849000,-674.14,0.00032876,2]
[421464870,1777723849000,-545.42,0.00032876,2]
[421464884,1777723849000,-446.094758,0.00032876,7]
[421464882,1777723849000,-500.0,0.00032876,2]
[421464888,1777723849000,-500.0,0.00032876,2]
[421464871,1777723849000,-596.15,0.00032876,2]
[421464885,1777723849000,-446.094758,0.00032876,7]
[421464883,1777723849000,-446.094758,0.00032876,7]
[421464887,1777723849000,-500.0,0.00032876,2]
[421464879,1777723849000,-500.0,0.00032876,2]
[421464886,1777723849000,-825.77,0.00032876,2]
[421464881,1777723849000,-500.0,0.00032876,2]
[421464890,1777723849000,-409.1948326,0.00032876,7]
[421464889,1777723849000,-661.7,0.00032876,2]
[421464880,1777723849000,-192.76262396,0.00032876,2]
[421464893,1777723863000,213.56815333,0.000232,120]
[421464892,1777723863000,193.0,0.0001628,120]
[421464891,1777723863000,2641.27447129,0.0001628,120]
[421464895,1777723864000,300.0,0.000232,120]
[421464894,1777723864000,300.0,0.0001628,120]
[421464897,1777724739000,262.99,0.00029919,120]
[421464898,1777724745000,-250.0,0.00013,2]
[421464901,1777724745000,-756.54783532,0.00014785,2]
[421464899,1777724745000,-186.77771255,0.000143,2]
[421464900,1777724745000,-251.56205228,0.000143,2]
[421464903,1777724833000,-221.69,0.000148,2]
[421464910,1777724833000,-370.99017054,0.00022562,2]
[421464909,1777724833000,-1157.32,0.00020951,2]
[421464905,1777724833000,-217.08473657,0.00019122,2]
[421464907,1777724833000,-160.0,0.00019222,2]
[421464908,1777724833000,-151.36785972,0.0002,20]
[421464906,1777724833000,-1000.0,0.00019178,2]
[421464902,1777724833000,-208.41149985,0.00014785,2]
[421464904,1777724833000,-284.0,0.000148,2]
[421464911,1777724845000,-388.02525308,0.00022562,2]
[421464912,1777725007000,24312.60322699,0.00012,2]
[421464930,1777725032000,-300.0,0.00014999,2]
[421464929,1777725032000,-300.0,0.00014999,2]
[421464932,1777725032000,-378.47607588,0.00015,2]
[421464928,1777725032000,-937.97312723,0.00014999,2]
[421464927,1777725032000,-262.02687277,0.00014999,2]
[421464931,1777725032000,-1493.89003197,0.00015,2]
[421464937,1777725032000,-487.38503545,0.00015,2]
[421464934,1777725032000,-400.0,0.00015,2]
[421464936,1777725032000,-636.65095903,0.00015,2]
[421464935,1777725032000,-557.6907513,0.00015,2]
[421464939,1777725032000,-856.08682692,0.00015,2]
[421464938,1777725032000,-717.79063966,0.00015,2]
[421464933,1777725032000,-591.86802884,0.00015,2]
[421464954,1777725038000,-200.86804156,0.00028891,2]
[421464952,1777725038000,-166.66,0.000286,30]
[421464956,1777725038000,-178.25,0.00029196,7]
[421464948,1777725038000,-160.42,0.00024658,2]
[421464957,1777725038000,-178.68,0.00029206,2]
[421464953,1777725038000,-500.0,0.00028693,17]
[421464960,1777725038000,-178.69,0.00029299,30]
[421464965,1777725038000,-2000.0,0.00030007,2]
[421464959,1777725038000,-178.68,0.00029252,7]
[421464955,1777725038000,-178.25,0.00029161,2]
[421464951,1777725038000,-761.44,0.00028484,2]
[421464950,1777725038000,-197.48,0.00028484,2]
[421464947,1777725038000,-160.81,0.00024658,2]
[421464958,1777725038000,-178.26,0.00029232,30]
[421464945,1777725038000,-238.66457638,0.00022562,2]
[421464942,1777725038000,-480.0,0.00016499,2]
[421464940,1777725038000,-431.69598331,0.00015,2]
[421464943,1777725038000,-5035.32,0.0002,2]
[421464946,1777725038000,-160.74,0.00024658,2]
[421464944,1777725038000,-415.9686,0.00022462,2]
[421464941,1777725038000,-4816.871834,0.00015,2]
[421464964,1777725038000,-150.0,0.00029554,2]
[421464949,1777725038000,-160.0,0.00027103,2]
[421464966,1777725038000,-151.0,0.00030102,2]
[421464988,1777725038000,-684.0,0.00032349,30]
[421464969,1777725038000,-151.0,0.00030102,2]
[421464989,1777725038000,-500.0,0.00032354,21]